fUSD/lending_fUSD_20240104
["ID","MTS","AMOUNT","RATE_DAILY","PERIOD"]
[310202799,1704400250165,-500.0,0.0003315,2]
[310202800,1704400250177,-500.0,0.0003315,2]
[310202801,1704400250187,-161.77469072,0.0003315,2]
[310202802,1704400250198,-500.0,0.0003315,2]
[310202803,1704400250207,-500.0,0.0003315,2]
[310202804,1704400250217,-500.0,0.0003315,2]
[310202805,1704400250227,-500.0,0.0003315,2]
[310202806,1704400250238,-500.0,0.0003315,2]
[310202807,1704400250249,-1262.62,0.0003315,2]
[310202808,1704400250259,-644.12,0.0003315,2]
[310202809,1704400250270,-500.0,0.0003315,2]
[310202810,1704400250281,-500.0,0.0003315,2]
[310202811,1704400250292,-516.7696764,0.0003315,2]
[310202812,1704400250302,-500.0,0.0003315,2]
[310202813,1704400250312,-500.0,0.0003315,2]
[310202814,1704400250324,-500.0,0.0003315,2]
[310202815,1704400250334,-500.0,0.0003315,2]
[310202816,1704400250345,-500.0,0.0003315,2]
[310202817,1704400250355,-500.0,0.0003315,2]
[310202818,1704400250366,-500.0,0.0003315,2]
[310202819,1704400250376,-500.0,0.0003315,2]
[310202820,1704400250387,-393.52841765,0.0003315,2]
[310202821,1704400250398,-500.0,0.0003315,2]
[310202822,1704400250408,-500.0,0.0003315,2]
[310202823,1704400250419,-500.0,0.0003315,2]
[310202824,1704400250430,-500.0,0.0003315,2]
[310202825,1704400250441,-500.0,0.0003315,2]
[310202826,1704400250452,-501.37,0.0003315,2]
[310202827,1704400250463,-500.0,0.0003315,2]
[310202828,1704400250474,-500.0,0.0003315,2]
[310202829,1704400250483,-500.0,0.0003315,2]
[310202830,1704400250494,-500.0,0.0003315,2]
[310202831,1704400250505,-500.0,0.0003315,2]
[310202832,1704400250515,-500.0,0.0003315,2]
[310202833,1704400250525,-511.59,0.0003315,2]
[310202834,1704400250535,-500.0,0.0003315,2]
[310202835,1704400250544,-500.0,0.0003315,2]
[310202836,1704400250554,-500.0,0.0003315,2]
[310202837,1704400250564,-500.0,0.0003315,2]
[310202838,1704400250573,-500.0,0.0003315,2]
[310202839,1704400250582,-500.0,0.0003315,2]
[310202840,1704400250591,-500.0,0.0003315,2]
[310202841,1704400250601,-500.0,0.0003315,2]
[310202842,1704400250611,-500.0,0.0003315,2]
[310202843,1704400250620,-500.0,0.0003315,2]
[310202844,1704400250630,-500.0,0.0003315,2]
[310202845,1704400250639,-500.0,0.0003315,2]
[310202846,1704400250649,-500.0,0.0003315,2]
[310202847,1704400250659,-500.0,0.0003315,2]
[310202848,1704400250669,-500.0,0.0003315,2]
[310202849,1704400250680,-500.0,0.0003315,2]
[310202850,1704400250689,-500.0,0.0003315,2]
[310202851,1704400250699,-256.54,0.0003315,2]
[310202852,1704400250709,-500.0,0.0003315,2]
[310202853,1704400250719,-500.0,0.0003315,2]
[310202854,1704400250729,-500.0,0.0003315,2]
[310202855,1704400250739,-159.65,0.0003315,2]
[310202856,1704400250748,-500.0,0.0003315,2]
[310202857,1704400250758,-500.0,0.0003315,2]
[310202858,1704400250768,-500.0,0.0003315,2]
[310202859,1704400250778,-500.0,0.0003315,2]
[310202860,1704400250787,-500.0,0.0003315,2]
[310202861,1704400250797,-984.97,0.0003315,2]
[310202862,1704400250807,-500.0,0.0003315,2]
[310202863,1704400250817,-500.0,0.0003315,2]
[310202864,1704400250827,-500.0,0.0003315,2]
[310202865,1704400250837,-500.0,0.0003315,2]
[310202866,1704400250847,-500.0,0.0003315,2]
[310202867,1704400250857,-500.0,0.0003315,2]
[310202868,1704400250867,-500.0,0.0003315,2]
[310202869,1704400250877,-484.18,0.0003315,2]
[310202870,1704400250887,-605.65923683,0.0003315,2]
[310202871,1704400250896,-188.0,0.0003315,2]
[310202872,1704400250906,-500.0,0.0003315,2]
[310202873,1704400250916,-500.0,0.0003315,2]
[310202874,1704400250925,-500.0,0.0003315,2]
[310202875,1704400250935,-500.0,0.0003315,2]
[310202876,1704400250944,-500.0,0.0003315,2]
[310202877,1704400250954,-500.0,0.0003315,2]
[310202878,1704400250964,-500.0,0.0003315,2]
[310202879,1704400250974,-500.0,0.0003315,2]
[310202880,1704400250984,-500.0,0.0003315,2]
[310202881,1704400250993,-500.0,0.0003315,2]
[310202882,1704400251003,-500.0,0.0003315,2]
[310202883,1704400251013,-500.0,0.0003315,2]
[310202884,1704400251023,-303.52,0.0003315,2]
[310202885,1704400251033,-198.40569785,0.0003315,2]
[310202886,1704400251042,-500.0,0.0003315,2]
[310202887,1704400251052,-500.0,0.0003315,2]
[310202888,1704400251062,-2813.94,0.0003315,2]
[310202889,1704400251072,-500.0,0.0003315,2]
[310202890,1704400251082,-500.0,0.0003315,2]
[310202891,1704400251092,-500.0,0.0003315,2]
[310202892,1704400251102,-500.0,0.0003315,2]
[310202893,1704400251113,-500.0,0.0003315,2]
[310202894,1704400251123,-500.0,0.0003315,2]
[310202895,1704400251134,-500.0,0.0003315,2]
[310202896,1704400251144,-500.0,0.0003315,2]
[310202897,1704400251155,-1043.97,0.0003315,2]
[310202898,1704400251165,-4226.54,0.0003315,2]
[310202899,1704400251177,-815.95,0.0003315,2]
[310202900,1704400251187,-579.28,0.0003315,2]
[310202901,1704400251197,-500.0,0.0003315,2]
[310202902,1704400251208,-500.0,0.0003315,2]
[310202903,1704400251218,-500.0,0.0003315,2]
[310202904,1704400251228,-500.0,0.0003315,2]
[310202905,1704400251240,-500.0,0.0003315,2]
[310202906,1704400251250,-500.0,0.0003315,2]
[310202907,1704400251260,-500.93,0.0003315,2]
[310202908,1704400251269,-1545.25,0.0003315,2]
[310202909,1704400251279,-500.0,0.0003315,2]
[310202910,1704400251288,-896.7,0.0003315,2]
[310202911,1704400251298,-500.0,0.0003315,2]
[310202912,1704400251308,-500.0,0.0003315,2]
[310202913,1704400251317,-500.0,0.0003315,2]
[310202914,1704400251327,-1118.72,0.0003315,2]
[310202915,1704400251338,-766.02,0.0003315,2]
[310202916,1704400251347,-525.53,0.0003315,2]
[310202917,1704400251356,-1839.95,0.0003315,2]
[310202918,1704400251366,-500.0,0.0003315,2]
[310202919,1704400251376,-1961.18,0.0003315,2]
[310202920,1704400251389,-666.57,0.0003315,2]
[310202921,1704400251399,-500.0,0.0003315,2]
[310202922,1704400251409,-650.88,0.0003315,2]
[310202923,1704400251419,-1047.53,0.0003315,2]
[310202924,1704400251429,-500.0,0.0003315,2]
[310202925,1704400251438,-2743.39,0.0003315,2]
[310202926,1704400251448,-500.0,0.0003315,2]
[310202927,1704400251458,-500.0,0.0003315,2]
[310202928,1704400251469,-6488.11,0.0003315,2]
[310202929,1704400251478,-500.0,0.0003315,2]
[310202930,1704400251489,-1207.75,0.0003315,2]
[310202931,1704400251501,-500.0,0.0003315,2]
[310202932,1704400251512,-500.0,0.0003315,2]
[310202933,1704400251521,-802.32,0.0003315,2]
[310202934,1704400251534,-500.0,0.0003315,2]
[310202935,1704400251544,-500.0,0.0003315,2]
[310202936,1704400251553,-500.0,0.0003315,2]
[310202937,1704400251571,-500.0,0.0003315,2]
[310202938,1704400251582,-2300.26,0.0003315,2]
[310202939,1704400251594,-500.0,0.0003315,2]
[310202940,1704400251605,-500.0,0.0003315,2]
[310202941,1704400251616,-500.0,0.0003315,2]
[310202942,1704400251626,-564.62,0.0003315,2]
[310202943,1704400251637,-2212.73,0.0003315,2]
[310202944,1704400251647,-500.0,0.0003315,2]
[310202945,1704400251659,-500.0,0.0003315,2]
[310202946,1704400251671,-500.0,0.0003315,2]
[310202947,1704400251682,-8818.63,0.0003315,2]
[310202948,1704400251695,-554.47,0.0003315,2]
[310202949,1704400251706,-500.0,0.0003315,2]
[310202950,1704400251719,-500.0,0.0003315,2]
[310202951,1704400251731,-500.0,0.0003315,2]
[310202952,1704400251744,-500.0,0.0003315,2]
[310202953,1704400251755,-1988.3,0.0003315,2]
[310202954,1704400251767,-500.0,0.0003315,2]
[310202955,1704400251778,-1033.94,0.0003315,2]
[310202956,1704400251788,-500.0,0.0003315,2]
[310202957,1704400251798,-500.0,0.0003315,2]
[310202958,1704400251808,-8023.99,0.0003315,2]
[310202959,1704400251819,-521.65530799,0.0003315,2]
[310202960,1704400251829,-500.0,0.0003315,2]
[310202961,1704400251839,-2729.72,0.0003315,2]
[310202962,1704400251849,-500.0,0.0003315,2]
[310202963,1704400251859,-500.0,0.0003315,2]
[310202964,1704400251868,-500.0,0.0003315,2]
[310202965,1704400251878,-500.0,0.0003315,2]
[310202966,1704400251943,-1421.2,0.0003315,2]
[310202967,1704400251954,-500.0,0.0003315,2]
[310202968,1704400251963,-500.0,0.0003315,2]
[310202969,1704400251973,-2075.81,0.0003315,2]
[310202970,1704400251982,-500.0,0.0003315,2]
[310202971,1704400251992,-2507.15,0.0003315,2]
[310202972,1704400252002,-500.0,0.0003315,2]
[310202973,1704400252011,-1492.24,0.0003315,2]
[310202974,1704400252021,-500.0,0.0003315,2]
[310202975,1704400252030,-504.08531083,0.0003315,2]
[310202976,1704400252039,-308.25131266,0.0003315,2]
[310202977,1704400252048,-500.0,0.0003315,2]
[310202978,1704400252057,-500.0,0.0003315,2]
[310202979,1704400252066,-500.0,0.0003315,2]
[310202980,1704400252075,-500.0,0.0003315,2]
[310202981,1704400252085,-500.0,0.0003315,2]
[310202982,1704400252093,-5784.19,0.0003315,2]
[310202983,1704400252102,-500.0,0.0003315,2]
[310202984,1704400252111,-1148.25,0.0003315,2]
[310202985,1704400252121,-500.0,0.0003315,2]
[310202986,1704400252131,-557.88850273,0.0003315,2]
[310202987,1704400252140,-532.62152616,0.0003315,2]
[310202988,1704400252149,-500.0,0.0003315,2]
[310202989,1704400252158,-512.73,0.0003315,2]
[310202990,1704400252168,-500.08,0.0003315,2]
[310202991,1704400252177,-500.0,0.0003315,2]
[310202992,1704400252186,-714.23,0.0003315,2]
[310202993,1704400252195,-500.0,0.0003315,2]
[310202994,1704400252204,-500.0,0.0003315,2]
[310202995,1704400252213,-500.0,0.0003315,2]
[310202996,1704400252223,-500.0,0.0003315,2]
[310202997,1704400252232,-500.0,0.0003315,2]
[310202998,1704400252241,-582.44,0.0003315,2]
[310202999,1704400252250,-500.0,0.0003315,2]
[310203000,1704400252259,-500.0,0.0003315,2]
[310203001,1704400252268,-500.0,0.0003315,2]
[310203002,1704400252277,-565.27,0.0003315,2]
[310203003,1704400252286,-500.0,0.0003315,2]
[310203004,1704400252296,-799.36,0.0003315,2]
[310203005,1704400252307,-500.0,0.0003315,2]
[310203006,1704400252317,-500.0,0.0003315,2]
[310203007,1704400252327,-500.0,0.0003315,2]
[310203008,1704400252336,-500.0,0.0003315,2]
[310203009,1704400252347,-500.0,0.0003315,2]
[310203010,1704400252357,-500.0,0.0003315,2]
[310203011,1704400252367,-1533.04,0.0003315,2]
[310203012,1704400252377,-1291.64,0.0003315,2]
[310203013,1704400252387,-500.0,0.0003315,2]
[310203014,1704400252396,-500.0,0.0003315,2]
[310203015,1704400252408,-654.95,0.0003315,2]
[310203016,1704400252418,-1046.38,0.0003315,2]
[310203017,1704400252429,-500.0,0.0003315,2]
[310203018,1704400252439,-1168.15,0.0003315,2]
[310203019,1704400252449,-233.23362875,0.0003315,2]
[310203020,1704400252459,-1279.36,0.0003315,2]
[310203021,1704400252469,-500.0,0.0003315,2]
[310203022,1704400252479,-500.0,0.0003315,2]
[310203023,1704400252488,-774.31,0.0003315,2]
[310203024,1704400252498,-500.0,0.0003315,2]
[310203025,1704400252508,-500.0,0.0003315,2]
[310203026,1704400252517,-1178.66,0.0003315,2]
[310203027,1704400252527,-2705.72,0.0003315,2]
[310203028,1704400252537,-500.0,0.0003315,2]
[310203029,1704400252548,-500.0,0.0003315,2]
[310203030,1704400252558,-540.01,0.0003315,2]
[310203031,1704400252566,-500.0,0.0003315,2]
[310203032,1704400252575,-800.68,0.0003315,2]
[310203033,1704400252585,-500.0,0.0003315,2]
[310203034,1704400252594,-683.02,0.0003315,2]
[310203035,1704400252604,-500.0,0.0003315,2]
[310203036,1704400252614,-1033.15,0.0003315,2]
[310203037,1704400252624,-500.0,0.0003315,2]
[310203038,1704400252635,-500.0,0.0003315,2]
[310203039,1704400252644,-664.5,0.0003315,2]
[310203040,1704400252655,-500.0,0.0003315,2]
[310203041,1704400252664,-5429.5,0.0003315,2]
[310203042,1704400252675,-787.99,0.0003315,2]
[310203043,1704400252685,-500.0,0.0003315,2]
[310203044,1704400252695,-1185.9,0.0003315,2]
[310203045,1704400252703,-500.0,0.0003315,2]
[310203046,1704400252712,-502.99,0.0003315,2]
[310203047,1704400252721,-803.67,0.0003315,2]
[310203048,1704400252730,-500.0,0.0003315,2]
[310203049,1704400252740,-703.08,0.0003315,2]
[310203050,1704400252749,-500.0,0.0003315,2]
[310203051,1704400252758,-931.91,0.0003315,2]
[310203052,1704400252767,-500.0,0.0003315,2]
[310203053,1704400252776,-500.0,0.0003315,2]
[310203054,1704400252785,-3045.47,0.0003315,2]
[310203055,1704400252795,-500.0,0.0003315,2]
[310203056,1704400252804,-500.0,0.0003315,2]
[310203057,1704400252814,-500.0,0.0003315,2]
[310203058,1704400252823,-500.0,0.0003315,2]
[310203059,1704400252833,-924.28,0.0003315,2]
[310203060,1704400252843,-500.0,0.0003315,2]
[310203061,1704400252853,-612.45,0.0003315,2]
[310203062,1704400252863,-500.0,0.0003315,2]
[310203063,1704400252874,-1664.58,0.0003315,2]
[310203064,1704400252883,-1719.17,0.0003315,2]
[310203065,1704400252893,-650.67,0.0003315,2]
[310203066,1704400252903,-500.0,0.0003315,2]
[310203067,1704400252913,-837.7,0.0003315,2]
[310203068,1704400252923,-651.85,0.0003315,2]
[310203069,1704400252934,-1763.88,0.0003315,2]
[310203070,1704400252944,-500.0,0.0003315,2]
[310203071,1704400252956,-500.0,0.0003315,2]
[310203072,1704400252966,-5455.26,0.0003315,2]
[310203073,1704400252978,-595.32,0.0003315,2]
[310203074,1704400252988,-500.0,0.0003315,2]
[310203075,1704400252999,-500.0,0.0003315,2]
[310203076,1704400253008,-500.0,0.0003315,2]
[310203077,1704400253018,-250.40927361,0.0003315,2]
[310203078,1704400253027,-441.12957306,0.0003315,2]
[310203079,1704400253037,-864.85,0.0003315,2]
[310203080,1704400253047,-1546.03,0.0003315,2]
[310203081,1704400253057,-500.0,0.0003315,2]
[310203082,1704400253067,-500.0,0.0003315,2]
[310203083,1704400253077,-500.0,0.0003315,2]
[310203084,1704400253088,-618.44,0.0003315,2]
[310203085,1704400253098,-1928.75,0.0003315,2]
[310203086,1704400253108,-500.0,0.0003315,2]
[310203087,1704400253119,-500.0,0.0003315,2]
[310203088,1704400253129,-575.7,0.0003315,2]
[310203089,1704400253138,-589.02,0.0003315,2]
[310203090,1704400253148,-2873.21,0.0003315,2]
[310203091,1704400253157,-500.0,0.0003315,2]
[310203092,1704400253166,-500.0,0.0003315,2]
[310203093,1704400253176,-501.82,0.0003315,2]
[310203094,1704400253186,-500.0,0.0003315,2]
[310203095,1704400253195,-500.0,0.0003315,2]
[310203096,1704400253205,-500.0,0.0003315,2]
[310203097,1704400253214,-902.0,0.0003315,2]
[310203098,1704400253226,-500.0,0.0003315,2]
[310203099,1704400253235,-500.0,0.0003315,2]
[310203100,1704400253244,-500.0,0.0003315,2]
[310203101,1704400253254,-500.0,0.0003315,2]
[310203102,1704400253265,-500.0,0.0003315,2]
[310203103,1704400253274,-1565.07,0.0003315,2]
[310203104,1704400253284,-1472.89,0.0003315,2]
[310203105,1704400253293,-6496.65,0.0003315,2]
[310203106,1704400253303,-500.0,0.0003315,2]
[310203107,1704400253312,-864.86,0.0003315,2]
[310203108,1704400253322,-500.0,0.0003315,2]
[310203109,1704400253332,-500.0,0.0003315,2]
[310203110,1704400253342,-500.0,0.0003315,2]
[310203111,1704400253351,-500.0,0.0003315,2]
[310203112,1704400253361,-500.0,0.0003315,2]
[310203113,1704400253371,-500.0,0.0003315,2]
[310203114,1704400253381,-500.0,0.0003315,2]
[310203115,1704400253393,-659.36,0.0003315,2]
[310203116,1704400253402,-500.0,0.0003315,2]
[310203117,1704400253412,-539.42,0.0003315,2]
[310203118,1704400253422,-619.10794049,0.0003315,2]
[310203119,1704400253434,-2834.51,0.0003315,2]
[310203120,1704400253443,-500.0,0.0003315,2]
[310203121,1704400253453,-535.67,0.0003315,2]
[310203122,1704400253462,-500.0,0.0003315,2]
[310203123,1704400253474,-772.31,0.0003315,2]
[310203124,1704400253484,-500.0,0.0003315,2]
[310203125,1704400253493,-500.0,0.0003315,2]
[310203126,1704400253503,-170.26240246,0.0003315,2]
[310203127,1704400253512,-1511.83,0.0003315,2]
[310203128,1704400253522,-500.0,0.0003315,2]
[310203129,1704400253531,-730.25,0.0003315,2]
[310203130,1704400253540,-500.0,0.0003315,2]
[310203131,1704400253550,-597.99,0.0003315,2]
[310203132,1704400253560,-500.0,0.0003315,2]
[310203133,1704400253570,-1373.46,0.0003315,2]
[310203134,1704400253579,-500.0,0.0003315,2]
[310203135,1704400253589,-500.0,0.0003315,2]
[310203136,1704400253599,-500.0,0.0003315,2]
[310203137,1704400253608,-500.0,0.0003315,2]
[310203138,1704400253617,-1411.58,0.0003315,2]
[310203139,1704400253626,-500.0,0.0003315,2]
[310203140,1704400253636,-1122.72,0.0003315,2]
[310203141,1704400253645,-844.92,0.0003315,2]
[310203142,1704400253655,-500.0,0.0003315,2]
[310203143,1704400253664,-500.0,0.0003315,2]
[310203144,1704400253673,-500.0,0.0003315,2]
[310203145,1704400253684,-500.0,0.0003315,2]
[310203146,1704400253694,-500.0,0.0003315,2]
[310203147,1704400253703,-500.0,0.0003315,2]
[310203148,1704400253712,-700.27,0.0003315,2]
[310203149,1704400253722,-938.79,0.0003315,2]
[310203150,1704400253732,-584.31394893,0.0003315,2]
[310203151,1704400253741,-500.0,0.0003315,2]
[310203152,1704400253751,-500.0,0.0003315,2]
[310203153,1704400253760,-2603.65,0.0003315,2]
[310203154,1704400253769,-500.0,0.0003315,2]
[310203155,1704400253780,-500.0,0.0003315,2]
[310203156,1704400253789,-500.0,0.0003315,2]
[310203157,1704400253799,-500.0,0.0003315,2]
[310203158,1704400253809,-690.56,0.0003315,2]
[310203159,1704400253821,-265.00457226,0.0003315,2]
[310203160,1704400253830,-500.0,0.0003315,2]
[310203161,1704400253840,-500.0,0.0003315,2]
[310203162,1704400253851,-1114.57,0.0003315,2]
[310203163,1704400253861,-1863.03,0.0003315,2]
[310203164,1704400253871,-500.0,0.0003315,2]
[310203165,1704400253880,-500.0,0.0003315,2]
[310203166,1704400253890,-500.0,0.0003315,2]
[310203167,1704400253902,-500.0,0.0003315,2]
[310203168,1704400253912,-625.26,0.0003315,2]
[310203169,1704400253921,-1822.1,0.0003315,2]
[310203170,1704400253933,-500.0,0.0003315,2]
[310203171,1704400253942,-500.0,0.0003315,2]
[310203172,1704400253951,-500.0,0.0003315,2]
[310203173,1704400253960,-250.16755986,0.0003315,2]
[310203174,1704400253970,-500.0,0.0003315,2]
[310203175,1704400253979,-500.0,0.0003315,2]
[310203176,1704400253989,-396.4,0.0003315,2]
[310203177,1704400253998,-524.64,0.0003315,2]
[310203178,1704400254008,-715.91,0.0003315,2]
[310203179,1704400254017,-1359.04,0.0003315,2]
[310203180,1704400254027,-500.0,0.0003315,2]
[310203181,1704400254037,-500.0,0.0003315,2]
[310203182,1704400254046,-2379.79,0.0003315,2]
[310203183,1704400254055,-154.0,0.00033217,2]
[310203184,1704400254065,-241.18,0.00033295,2]
[310203185,1704400254074,-882.26492804,0.00033324,2]
[310203186,1704400254084,-211.23017241,0.00033324,2]
[310203187,1704400254093,-190.29169438,0.00033324,2]
[310203188,1704400254102,-175.02319389,0.00033324,2]
[310203189,1704400254112,-208.22344079,0.00033324,2]
[310203190,1704400254122,-412.93661815,0.00033365,6]
[310203191,1704400254131,-756.29,0.00033376,2]
[310203192,1704400254141,-186.06834235,0.00033384,7]
[310203193,1704400254151,-159.51828696,0.00033384,7]
[310203194,1704400254161,-1474.70996629,0.000334,5]
[310203195,1704400254170,-500.0,0.00033423,2]
[310203196,1704400254179,-500.0,0.00033423,2]
[310203197,1704400254189,-328.59849913,0.00033423,2]
[310203198,1704400254198,-500.0,0.00033423,2]
[310203199,1704400254207,-500.0,0.00033423,2]
[310203200,1704400254217,-1013.2,0.00033423,2]
[310203201,1704400254226,-1013.2,0.00033423,2]
[310203202,1704400254235,-500.0,0.00033424,2]
[310203203,1704400254245,-500.0,0.00033424,2]
[310203204,1704400254254,-500.0,0.00033424,2]
[310203205,1704400254264,-175.18676845,0.00033424,2]
[310203206,1704400254273,-500.0,0.00033424,2]
[310203207,1704400254283,-500.0,0.00033424,2]
[310203208,1704400254292,-500.0,0.00033424,2]
[310203209,1704400254302,-500.0,0.00033424,2]
[310203210,1704400254311,-500.0,0.00033424,2]
[310203211,1704400254321,-500.0,0.00033424,2]
[310203212,1704400254331,-500.0,0.00033424,2]
[310203213,1704400254340,-500.0,0.00033424,2]
[310203214,1704400254350,-500.0,0.00033424,2]
[310203215,1704400254359,-500.0,0.00033424,2]
[310203216,1704400254369,-500.0,0.00033424,2]
[310203217,1704400254378,-500.0,0.00033424,2]
[310203218,1704400254388,-500.0,0.00033424,2]
[310203219,1704400254398,-500.0,0.00033424,2]
[310203220,1704400254407,-500.0,0.00033424,2]
[310203221,1704400254416,-500.0,0.00033424,2]
[310203222,1704400254425,-611.96603479,0.00033424,2]
[310203223,1704400254435,-595.4072321,0.00033424,2]
[310203224,1704400254445,-500.0,0.00033424,2]
[310203225,1704400254454,-500.0,0.00033424,2]
[310203226,1704400254464,-500.0,0.00033424,2]
[310203227,1704400254474,-500.0,0.00033424,2]
[310203228,1704400254483,-500.0,0.00033424,2]
[310203229,1704400254493,-610.36345264,0.00033424,2]
[310203230,1704400254502,-500.0,0.00033424,2]
[310203231,1704400254512,-512.8461613,0.00033424,2]
[310203232,1704400254521,-500.0,0.00033424,2]
[310203233,1704400254531,-500.0,0.00033424,2]
[310203234,1704400254540,-500.0,0.00033424,2]
[310203235,1704400254549,-500.0,0.00033424,2]
[310203236,1704400254560,-500.0,0.00033424,2]
[310203237,1704400254569,-500.0,0.00033424,2]
[310203238,1704400254579,-500.0,0.00033424,2]
[310203239,1704400254588,-500.0,0.00033424,2]
[310203240,1704400254598,-500.0,0.00033424,2]
[310203241,1704400254607,-500.0,0.00033424,2]
[310203242,1704400254617,-500.0,0.00033424,2]
[310203243,1704400254626,-500.0,0.00033424,2]
[310203244,1704400254636,-202.28497998,0.00033424,2]
[310203245,1704400254646,-500.0,0.00033424,2]
[310203246,1704400254655,-500.0,0.00033424,2]
[310203247,1704400254665,-500.0,0.00033424,2]
[310203248,1704400254676,-500.0,0.00033424,2]
[310203249,1704400254685,-500.0,0.00033424,2]
[310203250,1704400254695,-500.0,0.00033424,2]
[310203251,1704400254705,-500.0,0.00033424,2]
[310203252,1704400254714,-500.0,0.00033424,2]
[310203253,1704400254724,-500.0,0.00033424,2]
[310203254,1704400254734,-500.0,0.00033424,2]
[310203255,1704400254743,-500.0,0.00033424,2]
[310203256,1704400254753,-500.0,0.00033424,2]
[310203257,1704400254762,-500.0,0.00033424,2]
[310203258,1704400254772,-500.0,0.00033424,2]
[310203259,1704400254781,-500.0,0.00033424,2]
[310203260,1704400254791,-500.0,0.00033424,2]
[310203261,1704400254801,-500.0,0.00033424,2]
[310203262,1704400254810,-500.0,0.00033424,2]
[310203263,1704400254819,-500.0,0.00033424,2]
[310203264,1704400254829,-500.0,0.00033424,2]
[310203265,1704400254839,-500.0,0.00033424,2]
[310203266,1704400254850,-500.0,0.00033424,2]
[310203267,1704400254860,-500.0,0.00033424,2]
[310203268,1704400254870,-500.0,0.00033424,2]
[310203269,1704400254879,-161.51192133,0.00033424,2]
[310203270,1704400254889,-500.0,0.00033424,2]
[310203271,1704400254899,-171.49200038,0.00033424,2]
[310203272,1704400254909,-509.03,0.00033424,2]
[310203273,1704400254919,-500.0,0.00033424,2]
[310203274,1704400254929,-500.0,0.00033424,2]
[310203275,1704400254939,-500.0,0.00033424,2]
[310203276,1704400254949,-500.0,0.00033424,2]
[310203277,1704400254961,-500.0,0.00033424,2]
[310203278,1704400254971,-500.0,0.00033424,2]
[310203279,1704400254982,-500.0,0.00033424,2]
[310203280,1704400254994,-500.0,0.00033424,2]
[310203281,1704400255005,-500.0,0.00033424,2]
[310203282,1704400255015,-500.0,0.00033424,2]
[310203283,1704400255025,-500.0,0.00033424,2]
[310203284,1704400255034,-500.0,0.00033424,2]
[310203285,1704400255045,-500.0,0.00033424,2]
[310203286,1704400255055,-500.0,0.00033424,2]
[310203287,1704400255065,-340.54899386,0.00033424,2]
[310203288,1704400255076,-500.0,0.00033424,2]
[310203289,1704400255086,-500.0,0.00033424,2]
[310203290,1704400255096,-500.0,0.00033424,2]
[310203291,1704400255106,-170.4354779,0.00033424,2]
[310203292,1704400255115,-500.0,0.00033424,2]
[310203293,1704400255125,-500.0,0.00033424,2]
[310203294,1704400255135,-500.0,0.00033424,2]
[310203295,1704400255145,-500.0,0.00033424,2]
[310203296,1704400255154,-345.0129412,0.00033424,2]
[310203297,1704400255164,-500.0,0.00033424,2]
[310203298,1704400255173,-500.0,0.00033424,2]